[Event "FIDE World Championship 2023"]
[Site "Astana"]
[Date "2023.04.09"]
[Round "1.1"]
[White "Nepomniachtchi, Ian"]
[Black "Ding, Liren"]
[Result "1/2-1/2"]
[ECO "C85"]
[WhiteElo "2795"]
[BlackElo "2788"]
[Annotator "TA"]
[PlyCount "97"]
[EventDate "2023.04.09"]
[EventType "match"]
[EventCountry "KAZ"]
[SourceTitle "playchess.com"]
[Source "ChessBase"]
[SourceQuality "1"]
[TimeControl "40/7200:20/3600:900+30"]

{[%evp 13,97,11,20,0,0,0,0,2,4,0,9,18,31,23,36,4,15,18,18,12,26,27,27,28,30,33,39,39,35,32,29,27,37,35,38,44,40,40,79,76,75,76,76,72,80,66,62,23,31,0,0,0,52,44,52,13,15,15,17,0,29,36,32,0,0,0,0,0,0,0,0,0,0,0,0,0,0,0,0,0,0,0,0,0,8,0]} 1. e4 {[%emt 0:00:07]} e5 {[%emt 0:00:49]} 2. Nf3 {[%emt 0:00:07]} Nc6 {[%emt 0:00:20]} 3. Bb5 {[%emt 0:00:06]} a6 {[%emt 0:00:34]} 4. Ba4 {[%emt 0:00:06]} Nf6 {[%emt 0:00:25]} 5. O-O {[%emt 0:00:27]} Be7 {[%emt 0:00:13]} 6. Bxc6 {[%emt 0:00:25]} dxc6 {[%emt 0:00:20]} 7. Re1 {[%emt 0:00:04]} Nd7 {[%emt 0:09:17]} 8. d4 {[%emt 0:00:35] C85: Closed Ruy Lopez: Deferred Exchange Variation.} exd4 {[%emt 0:01:28]} 9. Qxd4 {[%emt 0:00:07]} O-O {[%emt 0:00:42]} 10. Bf4 {[%emt 0:00:08]} Nc5 {[%emt 0:04:00]} 11. Qe3 {[%emt 0:00:36] [#]} Bg4 $146 {[%emt 0:07:55]} ({Predecessor:} 11... Ne6 12. Bg3 Bc5 13. Qc3 Qe7 14. Nbd2 Re8 15. Rad1 {½-½ Groszpeter,A (2446)-Pinter,J (2540) HUN-chT 1516 2015 (8.7)}) 12. Nd4 {[%emt 0:03:40]} Qd7 {[%emt 0:08:46][%cal Oc5e4]} 13. Nc3 {[%emt 0:24:03]} Rad8 {[%emt 0:02:07] [#]} 14. Nf5 {[%emt 0:03:07]} Ne6 {[%emt 0:05:33]} (14... Bxf5 15. exf5) 15. Nxe7+ {[%emt 0:05:18]} Qxe7 {[%emt 0:00:24]} 16. Bg3 {[%emt 0:00:42]} Bh5 {[%emt 0:01:12]} 17. f3 {[%emt 0:04:04]} f6 {[%emt 0:01:02]} 18. h3 {[%emt 0:03:34]} h6 {[%emt 0:00:56]} 19. Kh2 {[%emt 0:02:17]} Bf7 {[%emt 0:14:45]} 20. Rad1 {[%emt 0:05:17]} b6 {[%emt 0:07:02]} 21. a3 {[%emt 0:07:53]} a5 {[%emt 0:04:06]} 22. Ne2 {[%emt 0:05:04]} Rxd1 {[%emt 0:10:08]} 23. Rxd1 {[%emt 0:00:11]} Rd8 {[%emt 0:00:04]} 24. Rd3 {[%emt 0:00:30]} c5 {[%emt 0:08:25]} 25. Qd2 {[%emt 0:02:14]} c6 {[%emt 0:10:44]} 26. Rxd8+ {[%emt 0:02:44]} Nxd8 {[%emt 0:00:08]} 27. Qf4 {[%emt 0:00:18] Hoping for Qb8.} b5 {[%emt 0:05:02]} 28. Qb8 {[%emt 0:03:24]} Kh7 {[%emt 0:00:38] Black is weak on the dark squares} 29. Bd6 {[%emt 0:14:25] White is more active.} Qd7 {[%emt 0:00:28]} 30. Ng3 {[%emt 0:06:57][%cal Be2g3,Bg3f5,Bf5d4][%mdl 32]} Ne6 {[%emt 0:01:27]} 31. f4 {[%emt 0:01:49]} h5 {[%emt 0:03:38]} 32. c3 {[%emt 0:02:21]} c4 {[%emt 0:00:59]} (32... h4 $11 33. Nf5 Bg6) 33. h4 $14 {[%emt 0:02:41]} Qd8 {[%emt 0:00:10]} 34. Qb7 {[%emt 0:04:32][%csl LRc6,LRf7]} (34. Qxd8 {simplifies} Nxd8 35. a4 Nb7 36. Ba3) 34... Be8 {[%emt 0:00:42]} (34... Qxd6 $2 35. Qxf7 Qxf4 36. Qxe6 $18) 35. Nf5 {[%emt 0:00:22]} Qd7 {[%emt 0:00:49]} 36. Qb8 {[%emt 0:01:04][%cal Oa3a4]} Qd8 {[%emt 0:01:28]} 37. Qxd8 {[%emt 0:03:38]} Nxd8 $11 {[%emt 0:00:02][%cal Be6d8,Bd8b7,Bb7c5,Bc5d3][%mdl 4128] Endgame KBN-KBN} 38. Nd4 {[%emt 0:00:46]} Nb7 {[%emt 0:00:33] The position is equal.} 39. e5 {[%emt 0:00:19]} Kg8 {[%emt 0:01:46]} 40. Kg3 {[%emt 0:00:00]} Bd7 {[%emt 0:00:00]} 41. Bc7 {[%emt 0:09:56]} Nc5 {[%emt 0:04:54]} 42. Bxa5 {[%emt 0:00:41]} Kf7 {[%emt 0:02:18]} 43. Bb4 {[%emt 0:05:14]} Nd3 {[%emt 0:13:34] ...c5 is the strong threat.} 44. e6+ {[%emt 0:00:15][%mdl 64] [#] Deflection} Bxe6 {[%emt 0:00:06] aiming for ...c5.} 45. Nxc6 {[%emt 0:00:04] Black must now prevent Nd8+.} Bd7 {[%emt 0:01:15]} 46. Nd4 {[%emt 0:00:16]} Nxb2 {[%emt 0:00:14]} 47. Kf3 {[%emt 0:02:10]} Nd3 {[%emt 0:07:43]} 48. g3 {[%emt 0:01:54]} Nc1 {[%emt 0:03:26]} 49. Ke3 {[%emt 0:01:05] Weighted Error Value: White=0.06 (flawless) /Black=0.07 (flawless)} 1/2-1/2

[Event "FIDE World Championship 2023"]
[Site "Astana"]
[Date "2023.04.10"]
[Round "2.1"]
[White "Ding, Liren"]
[Black "Nepomniachtchi, Ian"]
[Result "0-1"]
[ECO "D30"]
[WhiteElo "2788"]
[BlackElo "2795"]
[Annotator "TA"]
[PlyCount "58"]
[EventDate "2023.04.09"]
[EventType "match"]
[EventCountry "KAZ"]
[SourceTitle "playchess.com"]
[Source "ChessBase"]
[SourceQuality "1"]
[TimeControl "40/7200:20/3600:900+30"]

{[%evp 9,58,5,0,0,0,6,20,0,13,0,0,13,3,17,14,0,0,3,10,0,39,0,14,0,0,-61,-53,-103,-101,-142,-115,-148,-164,-155,-150,-158,-154,-271,-273,-270,-265,-353,-378,-678,-681,-667,-666,-700,-688,-839,-813]} 1. d4 {[%emt 0:00:03]} Nf6 {[%emt 0:00:07]} 2. c4 {[%emt 0:00:03]} e6 {[%emt 0:00:11]} 3. Nf3 {[%emt 0:00:04]} d5 {[%emt 0:00:06]} 4. h3 {[%emt 0:00:04]} dxc4 {[%emt 0:08:47] [#]} 5. e3 $146 {[%emt 0:02:10]} ({Predecessor:} 5. Qa4+ Nbd7 6. Qxc4 a6 7. Qc2 b5 8. e4 Bb7 9. e5 Nd5 10. Be2 c5 11. dxc5 Bxc5 {0-1 Gatineau,Y (2423)-Gago Padreny,I (2289) Titled Tuesday intern op 26th May blitz 2020 (7)}) 5... c5 {[%emt 0:02:11]} 6. Bxc4 {[%emt 0:00:33] D30: Queen's Gambit Declined: Systems without Nc3.} a6 {[%emt 0:00:23]} 7. O-O {[%emt 0:00:10]} Nc6 {[%emt 0:11:12]} 8. Nc3 {[%emt 0:03:33] The position is equal.} b5 {[%emt 0:02:10]} 9. Bd3 {[%emt 0:00:37]} Bb7 {[%emt 0:02:04][%cal Rc5d4]} 10. a4 {[%emt 0:00:51]} b4 {[%emt 0:10:02]} 11. Ne4 {[%emt 0:00:34]} Na5 {[%emt 0:03:14]} 12. Nxf6+ {[%emt 0:33:22]} gxf6 {[%emt 0:02:42]} 13. e4 {[%emt 0:03:50]} c4 {[%emt 0:06:26]} 14. Bc2 {[%emt 0:02:04]} Qc7 {[%emt 0:01:06]} 15. Bd2 {[%emt 0:07:11]} Rg8 {[%emt 0:05:47]} 16. Rc1 {[%emt 0:05:12]} O-O-O {[%emt 0:00:56]} 17. Bd3 {[%emt 0:14:49]} Kb8 $15 {[%emt 0:02:15][%cal Of6f5] Black has more active pieces.} 18. Re1 {[%emt 0:00:24] [#]} (18. Kh1 $15) 18... f5 $1 $17 {[%emt 0:03:25][%mdl 512]} 19. Bc2 {[%emt 0:20:40]} (19. Bb1 Nb3) 19... Nc6 {[%emt 0:03:22][%cal Ba5c6,Bc6d4,Bd4c2][%mdl 32]} 20. Bg5 {[%emt 0:04:46] [#]} Rxg5 {[%emt 0:06:16][%mdl 576] Deflection} 21. Nxg5 {[%emt 0:00:19]} Nxd4 {[%emt 0:01:29]} 22. Qh5 {[%emt 0:00:59]} f6 {[%emt 0:00:49]} 23. Nf3 {[%emt 0:01:39]} (23. Nxh7 $17 Bc5 24. Nxf6 (24. exf5 $2 {loses.} Nf3+ $19)) 23... Nxc2 $19 {[%emt 0:00:36]} 24. Rxc2 {[%emt 0:00:05]} Bxe4 {[%emt 0:00:34]} ({And not} 24... fxe4 25. Nd2 $11) 25. Rd2 {[%emt 0:01:38]} Bd6 {[%emt 0:05:40] And now ...Bxf3 would win.} 26. Kh1 $2 {[%emt 0:12:13]} (26. Nd4 c3 27. bxc3 bxc3 28. Rdd1) 26... c3 {[%emt 0:01:55] Black is clearly winning.} 27. bxc3 {[%emt 0:00:05]} bxc3 {[%emt 0:00:03]} 28. Rd4 {[%emt 0:00:04]} c2 {[%emt 0:01:08]} 29. Qh6 {[%emt 0:01:12]} e5 {[%emt 0:02:14] Weighted Error Value: White=0.53/Black=0.04 (flawless)} 0-1

[Event "FIDE World Championship 2023"]
[Site "Astana"]
[Date "2023.04.12"]
[Round "3.1"]
[White "Nepomniachtchi, Ian"]
[Black "Ding, Liren"]
[Result "1/2-1/2"]
[ECO "D36"]
[WhiteElo "2795"]
[BlackElo "2788"]
[Annotator "TA"]
[PlyCount "60"]
[EventDate "2023.04.09"]
[EventType "match"]
[EventCountry "KAZ"]
[SourceTitle "playchess.com"]
[Source "ChessBase"]
[SourceQuality "1"]
[TimeControl "40/7200:20/3600:900+30"]

{[%evp 20,60,25,20,21,20,24,20,27,19,24,16,20,0,4,0,16,8,11,9,10,7,11,0,0,0,0,-12,-8,-13,-9,-8,-10,-9,-14,-10,0,-6,0,0,0,0,0]} 1. d4 {[%emt 2:00:00]} Nf6 {[%emt 2:00:00]} 2. c4 {[%emt 0:00:00]} e6 {[%emt 0:00:00]} 3. Nc3 {[%emt 0:00:00]} d5 {[%emt 0:00:00]} 4. cxd5 {[%emt 0:00:00]} exd5 {[%emt 0:00:00]} 5. Bg5 {[%emt 0:00:00]} c6 {[%emt 0:00:00]} 6. e3 {[%emt 0:00:00]} h6 {[%emt 0:00:00]} 7. Bh4 {[%emt 0:00:00]} Be7 {[%emt 0:00:00]} 8. Bd3 {[%emt 0:00:00]} O-O {[%emt 0:00:00]} 9. Qc2 {[%emt 0:00:00]} Re8 {[%emt 0:00:00]} 10. Nge2 {[%emt 0:00:00]} Nbd7 {[%emt 0:00:00][%cal Bb8d7,Bd7f8,Bf8e6][%mdl 32]} 11. O-O {[%emt 0:00:00]} a5 {[%emt 0:00:00] D36: Queen's Gambit Declined: Exchange Variation: Main line (5 Bg5 c6 6 Qc2).} 12. a3 {[%emt 0:00:00]} Nh5 {[%emt 0:00:00]} 13. Bxe7 {[%emt 0:00:00]} Qxe7 {[%emt 0:00:00]} 14. Rae1 {[%emt 0:00:00]} Nf8 {[%emt 0:00:00]} 15. Nc1 {[%emt 0:00:00]} Nf6 {[%emt 0:00:00] The position is equal.} 16. f3 {[%emt 0:00:00]} Ne6 {[%emt 0:00:00] [#]} 17. N1e2 $146 {[%emt 0:00:00]} ({Predecessor:} 17. Qf2 c5 18. Bb5 Rd8 19. dxc5 Qxc5 20. Nb3 Qb6 21. Rd1 Bd7 22. Bxd7 Rxd7 23. Nd4 {½-½ Giri,A (2761)-Ding,L (2806) Chessable Masters Prelim rapid 2022 (6)}) 17... c5 {[%emt 0:00:00]} 18. Bb5 {[%emt 0:00:00]} Rd8 {[%emt 0:00:00]} 19. dxc5 {[%emt 0:00:00]} Qxc5 {[%emt 0:00:00]} 20. Qd2 {[%emt 0:00:00]} Bd7 {[%emt 0:00:00]} 21. Bxd7 {[%emt 0:00:00]} Nxd7 {[%emt 0:00:00][%cal Bf6d7,Bd7b6,Bb6c4][%mdl 32]} 22. Nd4 {[%emt 0:00:00]} (22. Nxd5 $2 {loses.} Nb6 $19) 22... Nb6 {[%emt 0:00:00]} 23. Rd1 {[%emt 0:00:00]} Nc4 {[%emt 0:00:00]} 24. Qf2 {[%emt 0:00:00]} Rac8 {[%emt 0:00:00][%cal Oc4b2] White should prevent ...Nxb2!} 25. Na4 {[%emt 0:00:00]} Qe7 {[%emt 0:00:00]} 26. Rfe1 {[%emt 0:00:00]} Qf6 {[%emt 0:00:00]} 27. Nb5 {[%emt 0:00:00]} Nc7 {[%emt 0:00:00]} 28. Nd4 {[%emt 0:00:00]} Ne6 {[%emt 0:00:00]} 29. Nb5 {[%emt 0:00:00]} Nc7 {[%emt 0:00:00]} 30. Nd4 {[%emt 0:00:00]} Ne6 {[%emt 0:00:00] Not much happened in this game.   Weighted Error Value: White=0.03 (flawless) /Black=0.01 (flawless)} 1/2-1/2

[Event "FIDE World Championship 2023"]
[Site "Astana"]
[Date "2023.04.13"]
[Round "4.1"]
[White "Ding, Liren"]
[Black "Nepomniachtchi, Ian"]
[Result "1-0"]
[ECO "A28"]
[WhiteElo "2788"]
[BlackElo "2795"]
[Annotator "TA"]
[PlyCount "93"]
[EventDate "2023.04.09"]
[EventType "match"]
[EventCountry "KAZ"]
[SourceTitle "playchess.com"]
[Source "ChessBase"]
[SourceQuality "1"]
[TimeControl "40/7200:20/3600:900+30"]

{[%evp 10,93,10,0,0,0,0,0,-6,-2,14,16,10,0,0,0,14,-16,-20,-20,30,0,0,0,-7,-25,0,-9,0,0,0,-9,0,-8,0,0,0,-51,-27,-41,-27,-48,0,-19,-19,-37,-20,-27,123,132,135,124,248,245,248,193,274,236,277,268,229,236,381,355,452,472,460,447,762,2297,29971,29972,29977,29978,29977,29979,29979,29980,29979,29980,29979,29979,29980,12025,6693,6693]} 1. c4 {[%emt 0:00:12]} Nf6 {[%emt 0:00:07]} 2. Nc3 {[%emt 0:00:50]} e5 {[%emt 0:00:10]} 3. Nf3 {[%emt 0:00:04]} Nc6 {[%emt 0:00:05]} 4. e3 {[%emt 0:00:31]} Bb4 {[%emt 0:00:50]} 5. Qc2 {[%emt 0:00:17]} Bxc3 {[%emt 0:01:06]} 6. bxc3 {[%emt 0:00:17]} d6 {[%emt 0:01:16] A28: English Opening: Four Knights Variation.} 7. e4 {[%emt 0:00:13]} O-O {[%emt 0:05:37]} 8. Be2 {[%emt 0:00:26]} Nh5 {[%emt 0:04:26] The position is equal. 8...h6 is the recent fashion.} 9. d4 {[%emt 0:00:33]} Nf4 {[%emt 0:03:19]} 10. Bxf4 {[%emt 0:00:59]} exf4 {[%emt 0:00:05] [#]} 11. O-O $146 {[%emt 0:02:59]} ({Predecessor:} 11. h4 Re8 12. Bd3 Bg4 13. Ng1 f5 14. Kf1 fxe4 15. Bxe4 h6 16. Nf3 Bxf3 17. gxf3 {1-0 Rapport,R (2621)-Zaragatski,I (2460) Bundesliga 1213 2012 (10)}) 11... Qf6 {[%emt 0:02:12]} 12. Rfe1 {[%emt 0:02:36]} Re8 {[%emt 0:09:32]} 13. Bd3 {[%emt 0:12:17][%cal Oe4e5]} Bg4 {[%emt 0:04:27]} 14. Nd2 {[%emt 0:01:29]} Na5 {[%emt 0:02:26]} ({Black should play} 14... Rad8) 15. c5 {[%emt 0:11:25]} dxc5 {[%emt 0:02:09]} 16. e5 {[%emt 0:00:26]} Qh6 {[%emt 0:00:56][%cal Of4f3]} 17. d5 {[%emt 0:01:22]} Rad8 {[%emt 0:13:17]} 18. c4 {[%emt 0:01:46]} b6 {[%emt 0:01:08][%cal Of4f3]} (18... f3 {is interesting.} 19. Qc3 b6 20. Nb3 Nxb3 21. axb3 a5) 19. h3 {[%emt 0:14:49]} Bh5 {[%emt 0:03:29]} 20. Be4 {[%emt 0:02:05]} Re7 {[%emt 0:17:14]} 21. Qc3 {[%emt 0:08:37]} Rde8 {[%emt 0:04:32]} 22. Bf3 {[%emt 0:15:50]} Nb7 {[%emt 0:00:50][%cal Ob7d6]} 23. Re2 {[%emt 0:01:56]} (23. Bxh5 $11 Qxh5 24. Nf3) 23... f6 {[%emt 0:04:18][%cal Re7e5]} 24. e6 {[%emt 0:02:59]} Nd6 {[%emt 0:01:36]} 25. Rae1 {[%emt 0:01:19]} Nf5 {[%emt 0:00:45]} (25... Bxf3 $15 {might be stronger.} 26. Qxf3 (26. Nxf3 g5 $11) 26... g5) 26. Bxh5 {[%emt 0:01:42]} (26. Bg4 $5 {[%cal Rg4f5]} Qg6 27. Bxh5 Qxh5 28. Nf3 $11) 26... Qxh5 {[%emt 0:00:28]} 27. Re4 {[%emt 0:00:18]} Qh6 {[%emt 0:01:57]} 28. Qf3 {[%emt 0:00:42]} Nd4 {[%emt 0:01:48] [#]} (28... g5 $11) 29. Rxd4 $1 $16 {[%emt 0:01:17][%mdl 512] White stays focused until the end.} cxd4 {[%emt 0:00:12]} 30. Nb3 $1 {[%emt 0:00:01][%cal Bd2b3,Bb3d4,Bd4f5][%mdl 32] White is more active.} g5 {[%emt 0:08:10]} (30... d3 $16 {might work better.}) 31. Nxd4 $18 {[%emt 0:00:07]} Qg6 {[%emt 0:00:03] [#]} 32. g4 $1 {[%emt 0:03:13]} fxg3 {[%emt 0:00:44]} 33. fxg3 {[%emt 0:00:27]} h5 {[%emt 0:00:04] [#]} 34. Nf5 $1 {[%emt 0:00:30]} Rh7 {[%emt 0:00:33]} 35. Qe4 {[%emt 0:06:19][%cal Of5e7] Ne7+! would be deadly.} Kh8 {[%emt 0:01:27]} (35... Kf8 $142 36. Rf1 Rg7) 36. e7 {[%emt 0:02:23]} Qf7 {[%emt 0:04:55]} 37. d6 {[%emt 0:05:03]} cxd6 {[%emt 0:00:04]} 38. Nxd6 {[%emt 0:00:02]} Qg8 {[%emt 0:00:06]} (38... Qxe7 $142 39. Nxe8 Qxe4 40. Rxe4 f5) 39. Nxe8 {[%emt 0:00:04]} Qxe8 {[%emt 0:00:02][%mdl 4096] Endgame KQR-KQR} 40. Qe6 {[%emt 0:00:00]} Kg7 {[%emt 0:00:00]} 41. Rf1 {[%emt 0:01:42]} Rh6 {[%emt 0:00:30]} 42. Rd1 {[%emt 0:00:11]} f5 {[%emt 0:00:13]} 43. Qe5+ {[%emt 0:03:26]} Kf7 {[%emt 0:00:17]} 44. Qxf5+ {[%emt 0:00:07]} Rf6 {[%emt 0:00:06]} 45. Qh7+ {[%emt 0:00:30]} Ke6 {[%emt 0:00:02]} 46. Qg7 {[%emt 0:03:54]} (46. Re1+ $142 Kd7 47. Qe4 Rh6 48. Rd1+ Kc7 49. Qe5+ Kc8 50. Rd8+ Qxd8 51. exd8=Q+ Kxd8 52. Qxg5+ Ke8 53. Qxh6) 46... Rg6 {[%emt 0:01:43]} 47. Qf8 {[%emt 0:01:30] Weighted Error Value: White=0.07 (flawless) /Black=0.26 (precise)} 1-0

[Event "FIDE World Championship 2023"]
[Site "Astana"]
[Date "2023.04.15"]
[Round "5.1"]
[White "Nepomniachtchi, Ian"]
[Black "Ding, Liren"]
[Result "1-0"]
[ECO "C84"]
[WhiteElo "2795"]
[BlackElo "2788"]
[Annotator "TA"]
[PlyCount "95"]
[EventDate "2023.04.09"]
[EventType "match"]
[EventCountry "KAZ"]
[SourceTitle "playchess.com"]
[Source "ChessBase"]
[SourceQuality "1"]
[TimeControl "40/7200:20/3600:900+30"]

{[%evp 15,95,23,19,23,25,2,6,6,11,0,0,0,6,0,0,0,0,0,0,0,0,0,0,0,0,0,0,0,0,0,6,0,16,19,13,11,15,25,61,45,18,0,0,0,66,62,81,88,100,72,76,63,69,84,95,59,93,93,116,112,437,426,709,708,693,700,664,655,783,655,812,812,792,788,792,778,727,730,29972,29968,29977,29978]} 1. e4 {[%emt 0:00:04]} e5 {[%emt 0:00:34]} 2. Nf3 {[%emt 0:00:04]} Nc6 {[%emt 0:00:04]} 3. Bb5 {[%emt 0:00:04][%cal Bf1b5,Bb5a4,Ba4b3,Bb3a2][%mdl 32]} a6 {[%emt 0:00:06]} 4. Ba4 {[%emt 0:00:04]} Nf6 {[%emt 0:00:05]} 5. O-O {[%emt 0:00:06]} Be7 {[%emt 0:00:04]} 6. d3 {[%emt 0:00:04]} b5 {[%emt 0:00:22]} 7. Bb3 {[%emt 0:00:05]} d6 {[%emt 0:00:04]} 8. c3 {[%emt 0:00:04]} (8. a3 O-O 9. Nc3 Na5 10. Ba2 Be6 11. b4 Nc6 12. Bg5 Bxa2 13. Rxa2 Qd7 14. Bxf6 Bxf6 15. Nd5 a5 16. Rb2 axb4 17. axb4 Bd8 18. c4 {½-½ Nepomniachtchi,I (2773)-Ding,L (2799) Airthings Masters Prelim rapid 2022 (14)}) 8... O-O {[%emt 0:00:19]} 9. h3 {[%emt 0:00:03] C84: Closed Ruy Lopez: Unusual White 6th moves.} Bb7 {[%emt 0:02:22]} 10. a4 {[%emt 0:00:16]} Na5 {[%emt 0:04:16]} 11. Ba2 {[%emt 0:00:11] The position is equal.} c5 {[%emt 0:00:08] [#]} 12. Bg5 $146 {[%emt 0:00:04]} ({Predecessor:} 12. Na3 Qd7 13. Bg5 bxa4 14. Nh4 Rab8 15. Nf5 Bd8 16. f4 exf4 17. Rxf4 Nb3 18. Bxb3 axb3 {1-0 Firouzja,A (2778)-Giri,A (2760) Miami FTX Crypto Cup rapid 2022 (3.7)}) 12... h6 {[%emt 0:13:42]} 13. Bxf6 {[%emt 0:00:17]} Bxf6 {[%emt 0:00:05]} (13... gxf6 $2 14. Nh4 Bc8 15. axb5 $18) 14. axb5 {[%emt 0:00:06]} axb5 {[%emt 0:00:04]} 15. Nbd2 {[%emt 0:00:05]} Nc6 {[%emt 0:06:50]} 16. Bd5 {[%emt 0:00:08]} Rxa1 {[%emt 0:05:06]} 17. Qxa1 {[%emt 0:00:05]} Qd7 {[%emt 0:00:03]} 18. Re1 {[%emt 0:00:21]} Ra8 {[%emt 0:06:37]} 19. Qd1 {[%emt 0:00:05]} Bd8 {[%emt 0:07:04]} 20. Nf1 {[%emt 0:01:30]} Ne7 {[%emt 0:00:12]} 21. Bxb7 {[%emt 0:01:17]} Qxb7 {[%emt 0:00:04]} 22. Ne3 {[%emt 0:00:32]} Bb6 {[%emt 0:01:12]} 23. h4 {[%emt 0:06:40]} Qc6 {[%emt 0:05:28]} 24. h5 {[%emt 0:14:57]} c4 {[%emt 0:01:23]} 25. d4 {[%emt 0:00:33]} exd4 {[%emt 0:14:16]} ({Don't take} 25... Qxe4 26. Nxc4 Qc6 27. Nxb6 Qxb6 28. dxe5 dxe5 29. Nxe5 $16 (29. Rxe5 Nc6 $16)) 26. Nxd4 {[%emt 0:00:41]} Qc5 {[%emt 0:01:12]} 27. Qg4 {[%emt 0:13:04] Hoping for Qd7.} Qe5 {[%emt 0:02:12]} 28. Nf3 {[%emt 0:01:49] A dynamic duo of knights.} (28. Qd7 $5 {[%cal Rd7b7]} Bxd4 29. cxd4 Qxe4 30. f3 $11) 28... Qe6 {[%emt 0:03:19]} 29. Nf5 {[%emt 0:00:59]} Nxf5 {[%emt 0:05:10]} (29... Qf6 $1 $11) 30. exf5 $14 {[%emt 0:00:39]} Qf6 {[%emt 0:00:58]} 31. Qe4 {[%emt 0:01:27] Repels d5} Rb8 {[%emt 0:00:04][%cal Ob5b4]} 32. Re2 {[%emt 0:05:49][%cal Be1e2,Be2e4,Be4g4][%mdl 32]} Bc5 {[%emt 0:00:40]} 33. g4 {[%emt 0:01:33]} Qd8 {[%emt 0:07:23]} 34. Qd5 {[%emt 0:00:54]} Kf8 {[%emt 0:08:17]} 35. Kf1 {[%emt 0:06:54][%cal Bg1f1,Bf1e2,Be2f3,Bf3g4][%mdl 32]} Rc8 {[%emt 0:05:36]} 36. Re4 {[%emt 0:04:22][%cal Og4g5] White has more active pieces.} Rb8 {[%emt 0:04:43] [#]} 37. g5 $1 $40 {[%emt 0:04:38][%cal Of5f6][%mdl 640] f6! is the strong threat. White wants a kill.} hxg5 $2 {[%emt 0:00:59][%mdl 8192] Loses the game.} (37... Qd7 $16 {is more resistant.}) (37... Qc8 38. Nd4) 38. Rg4 $18 {[%emt 0:01:40]} Ra8 {[%emt 0:07:34]} (38... Qa5 $142 39. Nxg5 Qa1+ 40. Kg2 Qa8 41. Qxa8 Rxa8) 39. Nxg5 {[%emt 0:04:51][%csl Gg5][%cal Rd5f7]} Ra1+ {[%emt 0:00:04]} 40. Ke2 {[%emt 0:00:00][%csl Gg5][%cal Rd5f7]} Qe7+ {[%emt 0:00:00]} 41. Ne4 {[%emt 0:03:21]} Qe8 {[%emt 0:15:57]} 42. Kf3 {[%emt 0:06:35] [#] Threatens to win with f6.} Qa8 {[%emt 0:04:36]} 43. Qxa8+ {[%emt 0:00:26]} Rxa8 {[%emt 0:00:04]} 44. f6 {[%emt 0:00:05]} g6 {[%emt 0:03:16]} 45. hxg6 {[%emt 0:00:14]} fxg6 {[%emt 0:00:04]} 46. Rxg6 {[%emt 0:00:05]} Ra2 {[%emt 0:00:40]} 47. Kg4 {[%emt 0:09:50]} Rxb2 {[%emt 0:00:20]} 48. Rh6 {[%emt 0:00:19] Weighted Error Value: White=0.11 (very precise) /Black=0.41} 1-0